bitfinex-derivatives/quotes_ETHF0:USTF0_20260316
["timestamp","ask_amount","ask_price","bid_price","bid_amount"]
[1773668855395,13.27594995,2300.4,2299.6,0.21739]
[1773668855594,7.605,2300.5,2299.6,12.67132669]
[1773668855993,20.88094995,2300.5,2299.6,12.67132669]
[1773668856391,0.00548533,2300.6,2299.8,12.67130669]
[1773668856694,0.00548533,2300.6,2299.9,12.45393669]
[1773668856890,13.28143528,2300.6,2299.9,12.45393669]
[1773668857189,13.28143528,2300.6,2299.8,0.21737]
[1773668857392,7.611,2300.5,2299.8,12.67130669]
[1773668857991,20.88694995,2300.5,2299.6,12.67132669]
[1773668859196,13.27594995,2300.4,2299.6,0.21739]
[1773668861301,13.27594995,2300.4,2299.3,12.45393669]
[1773668863392,13.27594995,2300.4,2299.1,0.00399525]
[1773668863796,13.27594995,2300.4,2299.1,12.45793194]
[1773668864191,13.27594995,2300.4,2299.1,0.00399525]
[1773668864897,13.27594995,2300.4,2299.1,12.45793194]
[1773668865197,13.27594995,2300.4,2299.2,12.67136669]
[1773668865500,13.27594995,2300.2,2299.2,12.67136669]
[1773668865695,13.27594995,2300.2,2299.2,0.21743]
[1773668866792,13.27594995,2300.2,2299.2,12.67136669]
[1773668867094,20.92594995,2300.1,2299.2,12.67136669]
[1773668867300,7.65,2300.0,2299.2,12.67136669]
[1773668868498,20.92594995,2300.0,2299.2,12.67136669]
[1773668868997,13.27594995,2299.9,2299.1,0.00399525]
[1773668869799,13.27594995,2300.5,2299.4,12.67134669]
[1773668871198,13.27594995,2300.5,2299.4,0.21741]
[1773668872102,13.27594995,2300.3,2299.4,12.67134669]
[1773668872405,13.27594995,2300.3,2299.8,0.21737]
[1773668872602,13.27594995,2300.3,2299.6,13.57025237]
[1773668873111,13.27594995,2300.3,2299.4,13.57025237]
[1773668874513,13.27594995,2300.3,2299.3,0.21742]
[1773668875110,13.43769223,2299.9,2298.3,13.00677926]
[1773668875305,13.43769223,2299.9,2298.5,13.00677926]
[1773668875506,13.43769223,2299.7,2298.5,13.00677926]
[1773668876121,13.43769223,2299.7,2298.5,13.01045601]
[1773668877318,13.43769223,2299.5,2298.5,13.01045601]
[1773668877519,21.12569223,2299.4,2298.5,13.01045601]
[1773668877718,7.689,2299.3,2298.5,13.01045601]
[1773668877913,13.43769223,2299.2,2298.5,13.01045601]
[1773668878113,13.43769223,2299.2,2298.5,0.00367675]
[1773668878817,13.43769223,2299.2,2298.1,13.00677926]
[1773668879719,13.43769223,2299.2,2298.1,13.01208244]
[1773668880318,7.7,2299.1,2298.3,13.00677926]
[1773668880518,7.7,2299.4,2298.4,0.21751]
[1773668880719,13.43769223,2299.9,2298.8,13.00677926]
[1773668880921,7.701,2299.8,2298.9,13.00677926]
[1773668881421,13.43769223,2299.7,2299.0,0.21744]
[1773668881829,7.705,2299.6,2299.0,0.21744]
[1773668882529,7.705,2299.6,2299.0,13.22421926]
[1773668882924,21.14269223,2299.6,2299.0,0.21744]
[1773668883132,13.43769223,2299.5,2298.8,13.00677926]
[1773668883730,12.17769223,2299.5,2298.8,13.00677926]
[1773668884031,12.17769223,2299.5,2298.9,0.21746]
[1773668884230,1.85587689,2300.6,2299.1,21.70452926]
[1773668884231,0.00548533,2300.6,2299.1,21.70452926]
[1773668884433,13.02964197,2301.4,2299.1,21.70452926]
[1773668884434,13.43769223,2301.4,2300.1,13.00677926]
[1773668884623,13.43769223,2301.4,2300.1,5.33337475]
[1773668884827,13.43769223,2301.4,2299.9,18.34015401]
[1773668885228,13.43769223,2301.4,2300.0,13.00677926]
[1773668885432,13.44326732,2301.4,2300.0,13.01067356]
[1773668885632,13.44326732,2301.4,2300.0,0.0038943]
[1773668887032,13.43769223,2301.2,2300.0,0.0038943]
[1773668887436,1.85039156,2301.3,2300.0,0.0038943]
[1773668887437,13.43769223,2301.0,2300.0,0.0038943]
[1773668887639,13.43769223,2301.0,2299.5,13.00677926]
[1773668888539,13.43769223,2301.0,2299.5,13.01001193]
[1773668890435,13.43769223,2300.7,2299.5,0.00323267]
[1773668890640,13.43769223,2300.5,2299.5,0.00323267]
[1773668891440,13.43769223,2300.5,2299.5,13.01001193]
[1773668891638,13.43769223,2300.5,2298.9,18.34015401]
[1773668891839,13.43769223,2300.5,2298.9,13.00677926]
[1773668892442,13.43769223,2300.3,2298.9,13.00677926]
[1773668892636,13.43769223,2300.1,2298.9,13.011495]
[1773668893145,13.43769223,2300.1,2298.9,0.00471574]
[1773668894746,13.43769223,2300.1,2298.9,13.011495]
[1773668895537,13.43769223,2300.1,2298.9,0.00471574]
[1773668895739,13.43769223,2300.1,2298.4,6.66671844]
[1773668895740,13.43769223,2299.7,2298.4,13.00677926]
[1773668895939,13.43769223,2299.5,2298.4,13.00677926]
[1773668896136,21.19669223,2299.4,2298.4,13.00677926]
[1773668896340,7.759,2299.3,2298.4,13.00677926]
[1773668896548,7.761,2299.2,2298.5,13.00677926]
[1773668896840,7.76655904,2299.2,2298.5,13.01029844]
[1773668897047,7.76655904,2299.2,2298.5,13.22778844]
[1773668897741,7.76655904,2299.2,2298.5,0.00351918]
[1773668897742,13.43769223,2299.1,2298.5,0.00351918]
[1773668898042,13.43769223,2299.1,2298.3,5.33337475]
[1773668898248,5.60807158,2299.0,2297.7,13.00677926]
[1773668898538,7.76655904,2299.2,2297.7,13.00677926]
[1773668898743,7.76655904,2299.2,2297.9,13.00677926]
[1773668898940,12.76665128,2299.2,2297.9,13.00677926]
[1773668899144,5.00009224,2299.1,2297.9,13.01114938]
[1773668899545,5.00009224,2299.1,2298.1,13.00677926]
[1773668899742,7.76655904,2299.2,2298.1,13.00677926]
[1773668900141,7.76655904,2299.2,2298.5,13.00677926]
[1773668900546,7.76655904,2299.2,2298.6,18.36232209]
[1773668900748,7.76655904,2299.2,2298.6,13.00677926]
[1773668901542,14.15561908,2299.2,2298.0,13.00677926]
[1773668901847,14.15561908,2299.2,2298.3,13.00677926]
[1773668902342,7.39894153,2299.2,2298.5,13.36171051]
[1773668902742,7.39894153,2299.2,2299.0,13.36171051]
[1773668902938,0.00555904,2299.2,2299.0,13.36171051]
[1773668903142,7.782,2299.6,2299.0,13.36171051]
[1773668903341,7.782,2299.6,2299.2,13.36171051]
[1773668903743,7.782,2299.6,2299.3,13.36171051]
[1773668903944,7.785,2300.3,2299.3,13.36171051]
[1773668904142,7.785,2300.2,2299.3,13.36171051]
[1773668904444,6.3880023,2300.1,2299.3,13.36171051]
[1773668905036,6.392359,2300.1,2299.3,13.36171051]
[1773668905240,6.392359,2300.1,2299.0,13.36171051]
[1773668906142,6.392359,2300.1,2298.6,13.36171051]
[1773668907648,6.21668534,2299.7,2298.0,13.36171051]
[1773668907848,6.21668534,2299.5,2298.0,13.36171051]
[1773668908047,6.16488472,2299.7,2298.0,13.36171051]
[1773668908251,6.16577839,2299.5,2298.0,13.36171051]
[1773668908446,6.16577839,2299.1,2298.0,13.36171051]
[1773668908647,6.16577839,2298.9,2298.0,13.36171051]
[1773668909248,6.16577839,2298.9,2297.9,0.00437012]
[1773668909445,6.16577839,2298.9,2297.9,13.36608063]
[1773668909642,6.16577839,2298.9,2298.1,13.36171051]
[1773668909843,6.16577839,2298.9,2297.9,0.00437012]
[1773668910043,6.16577839,2298.9,2297.2,13.36171051]
[1773668910044,6.05944515,2298.5,2297.2,13.36171051]
[1773668910353,6.05944515,2298.5,2296.6,0.21767]
[1773668910354,5.75855876,2298.4,2296.3,13.36171051]
[1773668910550,6.03111856,2298.2,2296.5,13.36171051]
[1773668910851,6.03111856,2298.0,2296.5,13.36171051]
[1773668911055,6.03526558,2298.0,2296.5,13.36523015]
[1773668911250,6.03526558,2298.0,2296.8,13.36171051]
[1773668911846,7.801,2297.9,2296.9,13.36171051]
[1773668912351,13.60080007,2297.9,2297.0,13.36171051]
[1773668912545,7.801,2297.9,2297.0,13.36171051]
[1773668912748,7.801,2297.9,2297.4,13.36171051]
[1773668913350,7.801,2297.9,2297.6,13.36171051]
[1773668913551,6.54274241,2297.6,2296.1,13.36171051]
[1773668914050,14.29294209,2297.9,2296.1,13.36171051]
[1773668914245,14.29294209,2297.9,2296.3,5.35554283]
[1773668914448,14.29294209,2297.9,2296.1,13.36171051]
[1773668914449,14.29294209,2297.9,2296.2,13.57942051]
[1773668914649,14.29294209,2297.9,2296.2,13.58310741]
[1773668914850,14.29294209,2297.9,2296.6,13.36171051]
[1773668915254,6.56679954,2297.8,2296.8,13.36171051]
[1773668917355,7.801,2297.9,2296.9,21.45371051]
[1773668917560,7.801,2297.9,2297.0,13.36171051]
[1773668917761,7.801,2297.9,2297.4,5.35554283]
[1773668917953,7.801,2297.9,2297.2,13.36171051]
[1773668918350,7.801,2297.9,2296.6,13.36171051]
[1773668918756,7.801,2297.9,2296.4,0.21769]
[1773668918757,7.801,2297.9,2297.1,13.36171051]
[1773668919355,0.00414702,2298.0,2297.4,13.36171051]
[1773668919756,7.811,2297.9,2296.8,13.36171051]
[1773668919957,7.811,2297.9,2297.0,13.36171051]
[1773668920157,14.45889127,2297.9,2297.0,13.36171051]
[1773668920358,14.00591792,2297.8,2296.5,13.36171051]
[1773668920661,7.811,2297.9,2296.5,13.36171051]
[1773668920662,14.00591792,2297.6,2296.5,13.36171051]
[1773668922161,14.00591792,2297.6,2296.2,0.0036869]
[1773668922162,14.00591792,2297.4,2296.2,0.0036869]
[1773668922461,14.00591792,2297.4,2296.2,13.36539741]
[1773668922664,14.00591792,2297.2,2296.2,13.36539741]
[1773668922858,14.00591792,2297.2,2295.1,0.21782]
[1773668922859,14.22354792,2297.1,2295.3,13.36171051]
[1773668923055,1.04482808,2298.4,2297.1,8.70495]
[1773668923360,7.815,2299.3,2297.5,13.36171051]
[1773668923559,21.82091792,2299.3,2298.3,13.36171051]
[1773668923765,14.00591792,2299.6,2298.3,13.36171051]
[1773668924066,14.01027549,2299.6,2298.6,13.36171051]
[1773668924567,14.01027549,2299.6,2298.3,13.36601359]
[1773668924960,14.01027549,2299.6,2298.4,13.36171051]
[1773668925959,14.00591792,2300.3,2299.2,13.36171051]
[1773668926165,14.00591792,2300.1,2298.8,13.36171051]
[1773668926468,14.00591792,2300.2,2298.8,13.36171051]
[1773668926658,14.00591792,2300.1,2298.8,13.36171051]
[1773668926964,14.01055246,2300.1,2298.8,13.36171051]
[1773668927166,14.01055246,2300.1,2298.5,13.36171051]
[1773668927460,14.01055246,2300.1,2297.3,22.63103]
[1773668927461,14.00591792,2299.3,2297.6,13.36171051]
[1773668927659,14.00591792,2299.1,2297.6,13.36171051]
[1773668928061,14.22343792,2298.3,2297.1,13.36171051]
[1773668928262,14.00591792,2298.0,2296.0,13.36171051]
[1773668928457,14.00916698,2298.0,2296.0,13.36492827]
[1773668928667,14.00591792,2297.8,2296.0,13.36492827]
[1773668928870,14.00591792,2297.6,2296.2,13.36171051]
[1773668929170,14.00591792,2297.6,2296.2,13.57942051]
[1773668929363,14.00591792,2297.6,2296.8,5.35554283]
[1773668929569,14.00591792,2297.6,2296.5,13.36171051]
[1773668929967,14.00591792,2297.6,2296.1,13.36171051]
[1773668931165,14.00591792,2297.5,2296.0,0.00321776]
[1773668931562,14.00591792,2297.3,2294.8,0.21784]
[1773668931763,14.00591792,2297.3,2293.9,13.94784]
[1773668931764,14.00591792,2296.3,2294.2,13.36171051]
[1773668931963,14.00591792,2296.1,2294.3,8.93383]
[1773668932163,7.827,2296.0,2295.0,0.21782]
[1773668932562,7.827,2296.0,2295.8,5.35554283]
[1773668932761,13.92544395,2296.5,2295.8,14.0670831]
[1773668932968,7.11105449,2296.5,2295.8,14.0670831]
[1773668933173,7.829,2296.6,2295.8,14.0670831]
[1773668933375,7.83,2296.6,2295.8,14.0670831]
[1773668933672,13.92544395,2296.5,2295.8,0.00388027]
[1773668934171,13.92544395,2296.5,2296.4,4.63754283]
[1773668934372,13.92544395,2296.5,2296.4,3.76720563]
[1773668934871,13.92544395,2296.5,2295.8,0.00388027]
[1773668935566,7.617,2297.9,2296.6,14.15927614]
[1773668935567,14.57756502,2297.9,2296.6,14.15927614]
[1773668936361,7.84,2297.8,2296.8,14.15927614]
[1773668937062,14.57756502,2297.7,2296.5,14.15927614]
[1773668937473,14.57756502,2297.7,2296.0,0.21773]
[1773668937474,14.57756502,2297.7,2296.1,14.15927614]
[1773668938366,14.57756502,2297.5,2295.8,0.00388027]
[1773668938563,14.57756502,2297.3,2295.8,0.00388027]
[1773668938766,14.57756502,2297.1,2295.8,0.00388027]
[1773668938972,14.57756502,2296.9,2295.8,0.00388027]
[1773668939173,14.57756502,2296.7,2295.8,0.00388027]
[1773668939363,14.57756502,2296.5,2295.8,0.00388027]
[1773668939566,7.849,2296.4,2295.8,0.00388027]
[1773668939762,22.42656502,2296.4,2295.5,14.15927614]
[1773668939968,14.57756502,2296.3,2294.6,14.15927614]
[1773668940676,14.57756502,2296.3,2294.8,14.15927614]
[1773668940972,22.43156502,2296.3,2295.0,14.15927614]
[1773668941370,14.57756502,2296.6,2295.5,14.37705614]
[1773668941568,22.43356502,2296.6,2295.5,14.37705614]
[1773668941968,14.57756502,2296.5,2295.5,14.37705614]
[1773668943076,7.856,2296.6,2295.5,14.37705614]
[1773668943471,14.57756502,2296.5,2295.5,14.15927614]
[1773668943768,14.57756502,2296.5,2295.3,0.21779]
[1773668944370,14.57756502,2296.5,2295.3,14.37706614]
[1773668945177,0.21445735,2297.3,2295.7,14.37703614]
[1773668945178,22.44556502,2296.8,2295.7,14.37703614]
[1773668945473,22.44556502,2296.7,2295.7,14.37703614]
[1773668945773,22.44656502,2296.9,2295.7,14.37703614]
[1773668945968,14.57756502,2296.8,2295.7,14.37703614]
[1773668946172,14.57756502,2296.8,2295.7,0.21776]
[1773668946373,14.57756502,2296.8,2295.4,14.15927614]
[1773668946570,14.57756502,2296.8,2295.5,14.37705614]
[1773668947268,14.57756502,2296.8,2295.5,0.21778]
[1773668948676,14.57756502,2296.8,2295.0,14.14604934]
[1773668948975,14.57756502,2296.8,2295.3,8.139]
[1773668949172,14.57756502,2296.8,2295.4,14.26914292]
[1773668949573,14.57756502,2296.8,2295.5,22.19135292]
[1773668949769,14.57756502,2296.8,2295.5,14.05135292]
[1773668949968,14.57756502,2296.8,2295.6,8.14]
[1773668950178,14.57756502,2296.8,2295.7,14.05135292]
[1773668950379,14.57756502,2296.8,2295.8,14.21742492]
[1773668951179,14.57756502,2296.8,2295.5,22.14167492]
[1773668951370,14.57756502,2296.8,2295.6,13.94717859]
[1773668951876,14.57756502,2296.8,2295.9,14.16491859]
[1773668953078,14.57756502,2297.1,2295.9,14.16491859]
[1773668953284,14.57756502,2297.1,2295.9,0.21774]
[1773668953481,14.57756502,2296.9,2295.4,13.9062611]
[1773668953682,14.57756502,2296.7,2295.6,13.9062611]
[1773668953979,14.57756502,2296.7,2295.7,0.21776]
[1773668953980,14.57756502,2296.6,2295.7,0.21776]
[1773668954183,14.57756502,2296.6,2295.7,14.1240211]
[1773668954484,14.57756502,2297.0,2296.0,13.83732609]
[1773668954984,14.57756502,2297.5,2296.2,14.05503609]
[1773668955882,14.57756502,2297.5,2296.4,13.69044814]
[1773668956581,7.902,2297.7,2295.9,13.64282874]
[1773668956582,14.57756502,2297.3,2295.9,13.64282874]
[1773668956977,14.57756502,2297.1,2295.9,13.64282874]
[1773668957178,14.57756502,2296.9,2296.0,13.74736322]
[1773668957477,14.57756502,2297.4,2296.3,13.52963322]
[1773668957784,14.57756502,2297.4,2295.9,13.52963322]
[1773668957986,14.57756502,2297.2,2295.9,13.52963322]
[1773668958186,14.57756502,2297.2,2296.0,8.155]
[1773668958383,14.57756502,2297.2,2295.6,13.37231716]
[1773668958384,14.57756502,2297.0,2295.6,13.37231716]
[1773668958683,14.57756502,2296.2,2294.2,33.48394081]
[1773668958874,14.79530502,2296.0,2294.2,13.37231716]
[1773668959077,14.79530502,2296.0,2293.6,13.31958271]
[1773668959078,14.57756502,2295.8,2293.6,13.31958271]
[1773668959277,14.57756502,2295.6,2293.6,13.31958271]
[1773668959576,14.79539502,2295.1,2293.3,13.21042423]
[1773668959779,14.57756502,2294.9,2294.1,13.21042423]
[1773668959988,14.57756502,2295.2,2294.1,13.21356414]
[1773668960379,7.917,2295.2,2294.1,13.21356414]
[1773668960580,14.57756502,2295.5,2294.1,13.21356414]
[1773668961079,14.57756502,2295.3,2294.1,13.21356414]
[1773668961285,14.57756502,2295.1,2294.1,13.21356414]
[1773668961480,7.92,2295.0,2294.1,13.21356414]
[1773668961680,22.49756502,2295.0,2294.1,13.21356414]
[1773668961881,7.92,2295.0,2294.1,13.21356414]
[1773668962081,7.92,2295.0,2294.2,13.37055943]
[1773668963278,22.70261697,2295.0,2294.2,13.37055943]
[1773668963482,22.70261697,2295.0,2294.1,0.00313991]
[1773668963684,14.78261697,2294.9,2294.1,0.00313991]
[1773668963990,14.78261697,2294.9,2293.3,13.34799099]
[1773668964382,14.78261697,2294.9,2293.4,13.30234707]
[1773668964383,7.93,2294.8,2293.4,13.30234707]
[1773668964689,14.78261697,2294.7,2293.4,13.52032707]
[1773668964884,7.93,2294.8,2293.9,13.30234707]
[1773668965084,14.78261697,2294.7,2293.4,0.00394185]
[1773668966084,14.78261697,2294.7,2293.4,13.42882594]
[1773668966291,14.78261697,2294.5,2293.4,13.42882594]
[1773668966590,14.78261697,2294.3,2293.4,13.42882594]
[1773668966786,14.78261697,2294.3,2293.4,0.00394185]
[1773668966988,14.78261697,2294.3,2292.8,13.6223563]
[1773668967289,14.78261697,2294.1,2292.4,13.5859662]
[1773668967688,14.78261697,2293.9,2292.4,13.5859662]
[1773668967889,14.78261697,2293.7,2292.4,0.00367406]
[1773668968088,14.78261697,2293.5,2292.4,13.56705639]
[1773668968291,22.72461697,2293.4,2292.4,13.56705639]
[1773668968487,22.72661697,2293.4,2292.4,13.56705639]
[1773668968687,14.78261697,2293.3,2292.4,13.56705639]
[1773668969388,14.78261697,2294.0,2292.6,14.0992681]
[1773668969599,7.948,2294.1,2292.6,14.0992681]
[1773668969600,7.948,2294.1,2293.2,14.0992681]
[1773668969784,22.73061697,2294.1,2293.2,14.0992681]
[1773668969988,14.78261697,2294.0,2292.9,14.0992681]
[1773668971990,14.78261697,2294.0,2292.7,14.0768819]
[1773668972393,14.78261697,2294.0,2292.9,14.02182277]
[1773668973590,7.959,2294.1,2293.2,0.218]
[1773668973791,14.78261697,2294.2,2293.3,13.97083157]
[1773668973991,14.78261697,2294.2,2293.0,22.16283157]
[1773668974187,14.78261697,2294.2,2293.0,13.97083157]
[1773668974791,14.78261697,2294.2,2292.6,14.13232885]
[1773668975599,14.78261697,2294.2,2292.7,13.82427002]
[1773668976695,14.78261697,2294.2,2292.8,13.98971752]
[1773668977492,14.78261697,2294.2,2292.9,22.0203672]
[1773668977695,14.78261697,2294.2,2293.0,8.2]
[1773668977897,14.78261697,2294.2,2293.1,13.8213672]
[1773668978096,14.78261697,2294.2,2293.0,8.2]
[1773668978097,7.961,2294.3,2293.5,13.77126749]
[1773668978393,0.00540722,2294.5,2293.6,14.07346001]
[1773668978896,14.78802419,2294.5,2293.2,13.85550001]
[1773668979099,14.78802419,2294.5,2293.3,13.85550001]
[1773668979395,14.78802419,2294.5,2293.2,22.07302332]
[1773668979795,14.78802419,2294.5,2293.3,13.87002332]
[1773668980192,14.78261697,2293.4,2291.8,13.66601804]
[1773668980391,14.78261697,2293.2,2291.2,8.206]
[1773668980698,14.78261697,2293.2,2291.3,13.66601804]
[1773668981100,14.78261697,2293.2,2291.5,13.66601804]
[1773668981302,14.78261697,2293.2,2291.5,13.67043387]
[1773668981896,14.78261697,2293.2,2291.5,21.88043387]
[1773668982098,14.78261697,2293.0,2291.5,13.67043387]
[1773668982502,14.78261697,2292.8,2291.7,13.22940335]
[1773668982697,14.78821539,2292.8,2291.7,13.22940335]
[1773668982904,14.78821539,2292.8,2291.8,0.00367406]
[1773668983099,14.78821539,2292.8,2291.7,13.22940335]
[1773668983401,14.78821539,2292.8,2291.8,0.00367406]
[1773668983602,14.78821539,2292.8,2291.5,0.00441583]
[1773668983903,14.78821539,2292.8,2291.5,0.00808989]
[1773668984103,14.78821539,2292.8,2291.5,0.00441583]
[1773668985705,14.78821539,2292.8,2291.5,13.24760818]
[1773668986303,14.78821539,2292.8,2291.6,13.2028413]
[1773668986810,14.78821539,2292.8,2291.8,0.00367406]
[1773668987107,14.78821539,2292.8,2291.6,13.19916724]
[1773668987407,14.78821539,2292.8,2291.8,0.00367406]
[1773668987608,14.78821539,2292.8,2291.5,13.15564432]
[1773668987811,14.78821539,2292.8,2291.8,13.15122849]
[1773668988410,0.00559842,2292.8,2291.9,12.99365447]
[1773668988611,0.00559842,2292.8,2292.0,21.21565447]
[1773668988810,14.78261697,2293.1,2292.4,0.00367406]
[1773668989011,14.78261697,2293.1,2292.2,8.223]
[1773668989208,14.78261697,2293.1,2292.2,21.16804682]
[1773668989415,14.78261697,2293.1,2292.3,13.02522099]
[1773668989604,14.78261697,2293.1,2292.0,13.02154693]
[1773668989808,14.78261697,2293.1,2292.1,13.02154693]
[1773668989809,14.78609198,2293.1,2292.1,13.02154693]
[1773668990203,14.78609198,2293.1,2291.5,0.00441583]
[1773668990414,14.78261697,2292.9,2291.7,13.0690548]
[1773668990909,14.78261697,2292.7,2291.5,0.00441583]
[1773668991111,14.78261697,2292.5,2291.5,0.00441583]
[1773668991309,14.78261697,2292.5,2291.5,12.97436134]
[1773668991911,14.78261697,2292.5,2291.7,0.00367406]
[1773668992105,14.78261697,2292.8,2291.8,12.92175364]
[1773668992311,13.26487011,2291.8,2290.4,12.99732731]
[1773668992617,13.26487011,2292.7,2290.9,12.77906731]
[1773668992816,13.26487011,2292.7,2291.1,12.77906731]
[1773668993013,13.26487011,2292.7,2291.2,21.0106697]
[1773668993213,13.26487011,2292.5,2291.3,8.229]
[1773668993612,13.26487011,2292.5,2291.4,8.23]
[1773668995109,13.26487011,2292.5,2291.2,12.78670959]
[1773668995520,13.26487011,2292.5,2291.3,8.232]
[1773668995908,13.10462999,2291.8,2290.3,12.42666113]
[1773668996510,13.10462999,2291.8,2290.5,12.29931915]
[1773668996716,13.10462999,2291.8,2290.6,8.235]
[1773668997019,13.10462999,2291.8,2290.6,8.24174025]
[1773668997221,13.10462999,2291.8,2290.7,8.235]
[1773668997420,13.10462999,2291.8,2290.7,8.23867406]
[1773668997617,13.10462999,2291.8,2290.6,12.29493921]
[1773668997813,13.10462999,2291.8,2290.6,0.00306619]
[1773668998014,13.10462999,2291.6,2290.6,0.00306619]
[1773668998215,13.10462999,2291.5,2290.6,0.00306619]
[1773668998418,13.10462999,2291.5,2290.8,0.00367406]
[1773668998618,13.10462999,2291.5,2290.6,0.00306619]
[1773668998818,13.10462999,2291.5,2291.0,0.00367406]
[1773668999116,13.10462999,2291.9,2290.8,12.17310965]
[1773668999314,13.10462999,2291.9,2290.9,8.239]
[1773668999515,13.10462999,2291.9,2291.0,12.18846451]
[1773668999820,13.10462999,2291.9,2290.7,12.18846451]
[1773669000317,13.10462999,2291.9,2291.2,0.00367406]
[1773669000719,13.10462999,2292.5,2291.3,12.262247]
[1773669001415,13.10462999,2291.9,2290.6,11.88346093]
[1773669001919,13.10462999,2291.9,2290.7,8.242]
[1773669002313,13.10462999,2291.9,2290.8,11.82963386]
[1773669002512,13.10462999,2291.9,2290.8,20.07163386]
[1773669002718,13.10462999,2291.7,2290.6,0.00306619]
[1773669002909,13.10462999,2291.6,2290.6,0.00306619]
[1773669003413,13.32277999,2291.6,2290.6,0.00306619]
[1773669004018,13.10462999,2291.6,2290.6,8.24406619]
[1773669004214,13.10462999,2291.6,2290.6,0.00306619]
[1773669004722,13.10462999,2291.5,2290.6,0.00306619]
[1773669005119,13.10462999,2291.5,2290.4,8.242]
[1773669005120,13.10462999,2291.5,2289.9,11.67876261]
[1773669005319,13.10462999,2291.5,2290.0,12.57493991]
[1773669005520,13.10462999,2291.5,2290.2,12.57493991]
[1773669006120,13.10462999,2291.5,2290.2,12.57815722]
[1773669007522,13.10462999,2291.5,2290.4,12.5079835]
[1773669008119,13.10462999,2291.5,2290.5,8.245]
[1773669008320,13.10462999,2291.5,2290.5,20.67903667]
[1773669008720,13.10462999,2291.5,2290.6,12.43403667]
[1773669009321,13.10462999,2292.2,2290.8,12.38440727]
[1773669009519,22.04789999,2291.9,2290.2,0.00321731]
[1773669009716,13.10462999,2291.6,2290.2,0.00321731]
[1773669009919,13.10462999,2291.4,2290.2,0.00321731]
[1773669010225,13.10462999,2291.2,2290.2,0.00321731]
[1773669011221,13.10462999,2291.2,2290.3,12.78015767]
[1773669011726,13.10462999,2291.2,2290.4,8.248]
[1773669012022,0.00523372,2291.4,2290.5,12.99840767]
[1773669012229,13.10462999,2292.0,2290.5,12.99840767]
[1773669012524,13.10462999,2292.0,2290.6,21.20294028]
[1773669013121,13.10914185,2292.0,2290.6,21.20294028]
[1773669013321,13.10914185,2292.0,2290.7,8.25]
[1773669013522,13.10914185,2292.0,2290.3,12.97407666]
[1773669013722,13.10914185,2292.0,2290.5,12.97407666]
[1773669013927,13.10914185,2292.0,2290.7,12.97407666]
[1773669015327,13.10914185,2292.0,2290.2,0.00321731]
[1773669015328,13.10914185,2292.0,2290.5,12.76945937]
[1773669015623,13.10914185,2292.0,2290.4,0.21826]
[1773669015624,13.10914185,2292.0,2290.7,12.76945937]
[1773669016024,13.10914185,2292.0,2290.8,8.253]
[1773669016224,13.10914185,2292.0,2290.9,12.72409696]
[1773669016834,13.10914185,2292.0,2290.9,12.94230696]
[1773669017031,0.00451186,2292.0,2290.9,12.94230696]
[1773669017231,13.10914185,2292.0,2291.1,12.64753182]
[1773669017532,13.10914185,2292.0,2291.2,8.254]
[1773669017729,13.10914185,2292.0,2291.2,8.255]
[1773669018031,13.10914185,2292.0,2290.8,12.64753182]
[1773669018234,13.10914185,2292.0,2290.9,8.255]
[1773669018428,13.10914185,2292.0,2290.8,12.64753182]
[1773669018632,13.10914185,2292.0,2290.9,8.256]
[1773669018934,13.10914185,2292.0,2290.9,20.84081151]
[1773669019134,13.10914185,2292.0,2291.0,12.53985313]
[1773669019633,13.10914185,2292.0,2291.1,8.257]
[1773669020327,13.10914185,2292.0,2291.1,21.35428636]
[1773669020532,13.10914185,2292.0,2291.2,13.09728636]
[1773669020933,13.10914185,2292.0,2291.3,8.258]
[1773669021133,0.00451186,2292.0,2291.3,13.05248088]
[1773669021329,0.00451186,2292.0,2291.4,21.31148088]
[1773669021534,0.00451186,2292.0,2291.5,13.05248088]
[1773669021837,0.00451186,2292.0,2291.6,21.31148088]
[1773669022037,13.10462999,2292.6,2291.7,21.31248088]
[1773669022336,13.10462999,2292.6,2291.8,8.26]
[1773669022741,13.10462999,2292.6,2291.8,20.67466801]
[1773669023034,12.37518615,2292.6,2291.4,12.41466801]
[1773669023236,12.37518615,2292.6,2290.7,1.86462149]
[1773669023237,12.37518615,2292.6,2290.7,12.41466801]
[1773669023435,12.37005172,2292.4,2291.1,12.41466801]
[1773669023628,12.37005172,2292.4,2291.2,8.263]
[1773669023833,12.37005172,2292.4,2291.3,12.41466801]
[1773669024132,12.37005172,2292.4,2291.4,8.264]
[1773669024328,12.37518615,2292.6,2291.5,12.41466801]
[1773669024529,0.00513443,2292.6,2291.5,12.41466801]
[1773669024834,12.37518615,2292.6,2291.6,20.67966801]
[1773669025034,12.37518615,2292.6,2291.7,8.265]
[1773669025235,12.37518615,2292.6,2291.7,20.67966801]
[1773669025435,12.37518615,2292.6,2291.7,12.41466801]
[1773669025740,12.37518615,2292.6,2291.2,12.11993867]
[1773669025741,12.37005172,2292.3,2291.2,12.11993867]
[1773669027738,12.37005172,2292.3,2291.3,8.27]
[1773669029041,12.37005172,2292.3,2291.3,19.74011527]
[1773669029739,12.37005172,2292.3,2290.5,0.21825]
[1773669029740,12.37005172,2292.3,2291.0,10.88331973]
[1773669030040,12.37005172,2292.1,2291.0,10.88331973]
[1773669030339,12.37005172,2292.1,2291.1,8.274]
[1773669030841,12.37005172,2292.1,2291.2,10.83943164]
[1773669031041,12.37005172,2292.3,2291.2,10.83943164]
[1773669031435,12.37005172,2292.5,2291.4,10.67151217]
[1773669031631,12.37005172,2292.3,2291.5,8.276]
[1773669032138,12.37005172,2292.3,2290.9,10.62823834]
[1773669032439,12.37005172,2292.3,2291.0,8.277]
[1773669032641,12.37005172,2292.3,2291.1,10.67619631]
[1773669033235,12.37005172,2292.3,2291.3,10.65979759]
[1773669034643,12.37005172,2292.3,2291.4,18.89993045]
[1773669034840,12.37005172,2292.3,2291.5,10.61993045]
[1773669035036,12.37005172,2292.5,2291.5,10.61993045]
[1773669036238,12.37005172,2292.5,2291.2,0.21819]
[1773669036239,12.37005172,2292.3,2291.2,10.55925114]
[1773669036443,12.37005172,2291.7,2290.6,8.283]
[1773669036737,12.37005172,2291.7,2290.5,10.55925114]
[1773669036938,12.37005172,2291.7,2290.6,8.284]
[1773669037246,12.37005172,2291.7,2290.8,10.64967471]
[1773669037445,12.37005172,2291.7,2290.9,18.93467471]
[1773669037640,12.37005172,2291.7,2291.0,18.93467471]
[1773669037845,12.37005172,2291.7,2291.1,8.285]
[1773669038249,8.119,2292.3,2291.1,8.285]
[1773669038250,12.37005172,2292.2,2291.2,10.58137115]
[1773669039248,12.37005172,2292.2,2291.3,8.288]
[1773669039438,12.37005172,2292.2,2291.3,18.8483403]
[1773669039644,12.37005172,2292.2,2291.3,10.5603403]